fUSD/lending_fUSD_20250905
["ID","MTS","AMOUNT","RATE_DAILY","PERIOD"]
[383687224,1757087450296,-3892.955099,0.00029996,7]
[383687225,1757087450305,-2911.009047,0.00029996,7]
[383687226,1757087450314,-3892.955099,0.00029996,7]
[383687227,1757087450324,-176.896216,0.00029996,7]
[383687228,1757087450333,-3892.955099,0.00029996,7]
[383687229,1757087450342,-151.0,0.00029996,7]
[383687230,1757087450352,-151.0,0.00029996,7]
[383687231,1757087450361,-151.0,0.00029996,7]
[383687232,1757087450371,-151.0,0.00029996,7]
[383687233,1757087450380,-365.74101,0.00029996,7]
[383687234,1757087450389,-1207.576497,0.00029996,7]
[383687235,1757087450399,-151.0,0.00029996,7]
[383687236,1757087450409,-365.74101,0.00029996,7]
[383687237,1757087450418,-176.896216,0.00029996,7]
[383687238,1757087450427,-1207.576497,0.00029996,7]
[383687239,1757087450436,-365.74101,0.00029996,7]
[383687240,1757087450446,-3892.955099,0.00029996,7]
[383687241,1757087450455,-176.896216,0.00029996,7]
[383687242,1757087450466,-1207.576497,0.00029996,7]
[383687243,1757087450476,-151.0,0.00029996,7]
[383687244,1757087450487,-168.026509,0.00029996,7]
[383687245,1757087450496,-365.74101,0.00029996,7]
[383687246,1757087450505,-176.896216,0.00029996,7]
[383687247,1757087450515,-1207.576497,0.00029996,7]
[383687248,1757087450524,-168.026509,0.00029996,7]
[383687249,1757087450532,-168.026509,0.00029996,7]
[383687250,1757087450542,-168.026509,0.00029996,7]
[383687251,1757087450551,-320.097283,0.00029996,7]
[383687252,1757087450560,-320.097283,0.00029996,7]
[383687253,1757087450570,-320.097283,0.00029996,7]
[383687254,1757087450579,-152.447948,0.00029996,7]
[383687255,1757087450588,-320.097283,0.00029996,7]
[383687256,1757087450599,-222.144865,0.00029996,7]
[383687257,1757087450610,-222.144865,0.00029996,7]
[383687258,1757087450619,-222.144865,0.00029996,7]
[383687259,1757087450630,-222.144865,0.00029996,7]
[383687260,1757087450640,-30551.933736,0.00029997,3]
[383687261,1757087450651,-31468.2953874,0.00029997,3]
[383687262,1757087450661,-1202.1514614,0.00029999,2]
[383687263,1757087450672,-1000.0,0.0003,2]
[383687264,1757087450684,-500.0,0.0003,2]
[383687265,1757087450694,-19475.902499,0.0003,2]
[383687266,1757087450704,-1779.12077677,0.0003,2]
[383687267,1757087450713,-981.12599263,0.0003,2]
[383687268,1757087450722,-601.0817575,0.0003,2]
[383687269,1757087450732,-4000.0,0.0003,4]
[383687270,1757087450741,-151.0,0.00030007,7]
[383687271,1757087450924,-151.0,0.00030007,7]
[383687272,1757087450938,-151.0,0.00030007,7]
[383687273,1757087450947,-151.0,0.00030007,7]
[383687274,1757087450957,-151.0,0.00030007,7]
[383687275,1757087450967,-151.0,0.00030007,7]
[383687276,1757087450979,-151.0,0.00030007,7]
[383687277,1757087450989,-151.0,0.00030007,7]
[383687278,1757087450999,-155.181125,0.00030007,7]
[383687279,1757087451009,-152.750038,0.00030007,7]
[383687280,1757087451018,-151.0,0.00030007,2]
[383687281,1757087451027,-151.0,0.00030007,7]
[383687282,1757087451038,-151.0,0.00030007,7]
[383687283,1757087451047,-151.0,0.00030007,2]
[383687284,1757087451057,-151.0,0.00030007,7]
[383687285,1757087451066,-151.0,0.00030007,7]
[383687286,1757087451076,-151.0,0.00030007,7]
[383687287,1757087451086,-151.0,0.00030007,7]
[383687288,1757087451095,-165.031044,0.00030007,7]
[383687289,1757087451105,-151.959618,0.00030007,7]
[383687290,1757087451116,-151.0,0.00030007,7]
[383687291,1757087451126,-165.031044,0.00030007,7]
[383687292,1757087451137,-151.0,0.00030007,7]
[383687293,1757087451150,-165.031044,0.00030007,7]
[383687294,1757087451160,-165.031044,0.00030007,7]
[383687295,1757087451170,-151.0,0.00030007,7]
[383687296,1757087451182,-151.0,0.00030007,7]
[383687297,1757087451191,-151.0,0.00030007,7]
[383687298,1757087451201,-151.0,0.00030007,7]
[383687299,1757087451210,-151.0,0.00030007,7]
[383687300,1757087451220,-151.0,0.00030007,7]
[383687301,1757087451230,-824.55332,0.00030007,7]
[383687302,1757087451239,-172.114848,0.00030007,7]
[383687303,1757087451249,-824.55332,0.00030007,7]
[383687304,1757087451258,-151.0,0.00030007,7]
[383687305,1757087451267,-172.114848,0.00030007,7]
[383687306,1757087451277,-824.55332,0.00030007,7]
[383687307,1757087451287,-172.114848,0.00030007,7]
[383687308,1757087451296,-151.0,0.00030007,7]
[383687309,1757087451305,-172.114848,0.00030007,7]
[383687310,1757087451314,-824.55332,0.00030007,7]
[383687311,1757087451324,-151.0,0.00030007,7]
[383687312,1757087451333,-151.0,0.00030007,7]
[383687313,1757087451343,-151.0,0.00030007,7]
[383687314,1757087451353,-151.0,0.00030007,7]
[383687315,1757087451362,-151.0,0.00030007,7]
[383687316,1757087451372,-151.0,0.00030007,7]
[383687317,1757087451381,-151.0,0.00030007,7]
[383687318,1757087451391,-151.0,0.00030007,7]
[383687319,1757087451400,-151.0,0.00030007,7]
[383687320,1757087451409,-151.0,0.00030007,7]
[383687321,1757087451419,-229.398993,0.00030007,7]
[383687322,1757087451428,-423.432602,0.00030007,7]
[383687323,1757087451437,-423.432602,0.00030007,7]
[383687324,1757087451446,-151.0,0.00030007,7]
[383687325,1757087451455,-423.432602,0.00030007,7]
[383687326,1757087451465,-151.0,0.00030007,7]
[383687327,1757087451474,-423.432602,0.00030007,7]
[383687328,1757087451483,-220.3515,0.00030007,7]
[383687329,1757087451492,-151.0,0.00030007,7]
[383687330,1757087451502,-220.3515,0.00030007,7]
[383687331,1757087451512,-281.870824,0.00030007,7]
[383687332,1757087451521,-220.3515,0.00030007,7]
[383687333,1757087451531,-151.0,0.00030007,7]
[383687334,1757087451540,-220.3515,0.00030007,7]
[383687335,1757087451552,-151.0,0.00030007,7]
[383687336,1757087451562,-151.0,0.00030007,7]
[383687337,1757087451571,-151.0,0.00030007,7]
[383687338,1757087451581,-151.0,0.00030007,7]
[383687339,1757087451590,-182.348998,0.00030007,7]
[383687340,1757087451599,-151.0,0.00030007,7]
[383687341,1757087451609,-151.0,0.00030007,7]
[383687342,1757087451618,-154.780746,0.00030007,7]
[383687343,1757087451628,-151.0,0.00030007,7]
[383687344,1757087451637,-414.87676,0.00030007,7]
[383687345,1757087451647,-151.0,0.00030007,7]
[383687346,1757087451657,-151.0,0.00030007,7]
[383687347,1757087451667,-414.87676,0.00030007,7]
[383687348,1757087451677,-151.0,0.00030007,7]
[383687349,1757087451687,-414.87676,0.00030007,7]
[383687350,1757087451696,-414.87676,0.00030007,7]
[383687351,1757087451706,-151.0,0.00030007,7]
[383687352,1757087451716,-151.0,0.00030007,7]
[383687353,1757087451725,-500.0,0.00030011,2]
[383687354,1757087451735,-1077.63734681,0.00030016,15]
[383687355,1757087451744,-332.027744,0.0003002,7]
[383687356,1757087451754,-151.0,0.0003002,7]
[383687357,1757087451763,-151.0,0.0003002,7]
[383687358,1757087451772,-332.027744,0.0003002,7]
[383687359,1757087451782,-332.027744,0.0003002,7]
[383687360,1757087451791,-151.0,0.0003002,7]
[383687361,1757087451801,-4462.186017,0.0003002,7]
[383687362,1757087451810,-332.027744,0.0003002,7]
[383687363,1757087451820,-151.0,0.0003002,7]
[383687364,1757087451830,-4462.186017,0.0003002,7]
[383687365,1757087451839,-168.031107,0.0003002,7]
[383687366,1757087451848,-151.0,0.0003002,7]
[383687367,1757087451859,-4462.186017,0.0003002,7]
[383687368,1757087451868,-151.0,0.0003002,7]
[383687369,1757087451878,-4462.186017,0.0003002,7]
[383687370,1757087451887,-168.031107,0.0003002,7]
[383687371,1757087451899,-151.0,0.0003002,7]
[383687372,1757087451909,-151.0,0.0003002,7]
[383687373,1757087451918,-151.0,0.0003002,7]
[383687374,1757087451928,-563.313601,0.0003002,7]
[383687375,1757087451937,-151.0,0.0003002,7]
[383687376,1757087451947,-168.031107,0.0003002,7]
[383687377,1757087451956,-218.939057,0.0003002,7]
[383687378,1757087451966,-563.313601,0.0003002,7]
[383687379,1757087451975,-265.947801,0.0003002,7]
[383687380,1757087451984,-168.031107,0.0003002,7]
[383687381,1757087451994,-10489.4317958,0.0003002,3]
[383687382,1757087452006,-5000.0,0.00030027,2]
[383687383,1757087452015,-15275.966868,0.00030027,3]
[383687384,1757087452026,-156.37849,0.00030027,7]
[383687385,1757087452035,-324.305971,0.00030027,7]
[383687386,1757087452045,-1040.529277,0.00030027,7]
[383687387,1757087452054,-324.305971,0.00030027,7]
[383687388,1757087452064,-1040.529277,0.00030027,7]
[383687389,1757087452073,-324.305971,0.00030027,7]
[383687390,1757087452083,-1040.529277,0.00030027,7]
[383687391,1757087452092,-324.305971,0.00030027,7]
[383687392,1757087452102,-151.0,0.00030027,7]
[383687393,1757087452111,-234.537323,0.00030027,7]
[383687394,1757087452120,-1040.529277,0.00030027,7]
[383687395,1757087452129,-151.0,0.00030027,7]
[383687396,1757087452139,-401.087816,0.00030027,7]
[383687397,1757087452148,-3448.720097,0.00030027,7]
[383687398,1757087452157,-401.087816,0.00030027,7]
[383687399,1757087452167,-3448.720097,0.00030027,7]
[383687400,1757087452181,-151.0,0.00030027,7]
[383687401,1757087452191,-401.087816,0.00030027,7]
[383687402,1757087452200,-3448.720097,0.00030027,7]
[383687403,1757087452210,-182.383805,0.00030027,7]
[383687404,1757087452221,-401.087816,0.00030027,7]
[383687405,1757087452231,-3448.720097,0.00030027,7]
[383687406,1757087452240,-308.508602,0.00030027,7]
[383687407,1757087452249,-151.0,0.00030027,7]
[383687408,1757087452259,-308.508602,0.00030027,7]
[383687409,1757087452269,-151.0,0.00030027,7]
[383687410,1757087452279,-151.0,0.00030027,7]
[383687411,1757087452288,-308.508602,0.00030027,7]
[383687412,1757087452297,-151.0,0.00030027,7]
[383687413,1757087452307,-308.508602,0.00030027,7]
[383687414,1757087452316,-451.641916,0.00030027,7]
[383687415,1757087452325,-254.687648,0.00030027,7]
[383687416,1757087452335,-151.0,0.00030027,7]
[383687417,1757087452344,-451.641916,0.00030027,7]
[383687418,1757087452353,-254.687648,0.00030027,7]
[383687419,1757087452363,-151.0,0.00030027,7]
[383687420,1757087452372,-151.0,0.00030027,7]
[383687421,1757087452381,-451.641916,0.00030027,7]
[383687422,1757087452391,-254.687648,0.00030027,7]
[383687423,1757087452400,-151.0,0.00030027,7]
[383687424,1757087452409,-451.641916,0.00030027,7]
[383687425,1757087452418,-254.687648,0.00030027,7]
[383687426,1757087452427,-151.0,0.00030027,7]
[383687427,1757087452436,-151.0,0.00030027,7]
[383687428,1757087452446,-156.508609,0.00030027,7]
[383687429,1757087452455,-151.0,0.00030027,7]
[383687430,1757087452465,-152.585334,0.00030027,7]
[383687431,1757087452474,-151.0,0.00030027,7]
[383687432,1757087452483,-151.0,0.00030027,7]
[383687433,1757087452492,-151.0,0.00030027,7]
[383687434,1757087452502,-151.0,0.00030027,7]
[383687435,1757087452511,-151.0,0.00030027,7]
[383687436,1757087452521,-1190.465765,0.00030027,7]
[383687437,1757087452530,-1190.465765,0.00030027,7]
[383687438,1757087452539,-1190.465765,0.00030027,7]
[383687439,1757087452548,-1190.465765,0.00030027,7]
[383687440,1757087452562,-151.0,0.00030027,7]
[383687441,1757087452571,-150.0,0.00030027,7]
[383687442,1757087452580,-150.0,0.00030027,7]
[383687443,1757087452590,-150.0,0.00030027,7]
[383687444,1757087452599,-150.0,0.00030027,7]
[383687445,1757087452609,-155.39636819,0.0003003,2]
[383687446,1757087452618,-2680.74656563,0.0003003,2]
[383687447,1757087452627,-4108.65127388,0.0003003,2]
[383687448,1757087452636,-2211.19393061,0.00030037,2]
[383687449,1757087452647,-3097.87416068,0.00030037,2]
[383687450,1757087452658,-3016.60187771,0.00030046,13]
[383687451,1757087452668,-274.5,0.00030051,30]
[383687452,1757087452678,-163.2,0.00030066,2]
[383687453,1757087452688,-150.0,0.00030073,5]
[383687454,1757087452700,-10489.4317958,0.00030073,3]
[383687455,1757087452710,-15275.966868,0.00030089,3]
[383687456,1757087452723,-10489.4317958,0.00030089,3]
[383687457,1757087452732,-151.0,0.00030099,7]
[383687458,1757087452742,-151.0,0.00030099,7]
[383687459,1757087452751,-151.0,0.00030099,7]
[383687460,1757087452761,-151.0,0.00030099,7]
[383687461,1757087452771,-151.0,0.00030099,7]
[383687462,1757087452781,-164.365602,0.00030099,7]
[383687463,1757087452790,-151.0,0.00030099,7]
[383687464,1757087452800,-164.365602,0.00030099,7]
[383687465,1757087452810,-151.0,0.00030099,7]
[383687466,1757087452820,-164.365602,0.00030099,7]
[383687467,1757087452830,-152.305809,0.00030099,7]
[383687468,1757087452841,-164.365602,0.00030099,7]
[383687469,1757087452851,-151.0,0.00030099,7]
[383687470,1757087452862,-151.0,0.00030099,7]
[383687471,1757087452871,-151.0,0.00030099,7]
[383687472,1757087452881,-151.0,0.00030099,7]
[383687473,1757087452892,-3704.902969,0.00030099,7]
[383687474,1757087452901,-2911.009047,0.00030099,7]
[383687475,1757087452910,-596.556555,0.00030099,7]
[383687476,1757087452919,-3704.902969,0.00030099,7]
[383687477,1757087452928,-2911.009047,0.00030099,7]
[383687478,1757087452938,-596.556555,0.00030099,7]
[383687479,1757087452948,-3704.902969,0.00030099,7]
[383687480,1757087452957,-596.556555,0.00030099,7]
[383687481,1757087452966,-2911.009047,0.00030099,7]
[383687482,1757087452975,-3704.902969,0.00030099,7]
[383687483,1757087452984,-596.556555,0.00030099,7]
[383687484,1757087452994,-3892.955099,0.00030099,7]
[383687485,1757087453005,-2911.009047,0.00030099,7]
[383687486,1757087453015,-3892.955099,0.00030099,7]
[383687487,1757087453025,-3892.955099,0.00030099,7]
[383687488,1757087453034,-151.0,0.00030099,7]
[383687489,1757087453045,-151.0,0.00030099,7]
[383687490,1757087453054,-151.0,0.00030099,7]
[383687491,1757087453064,-151.0,0.00030099,7]
[383687492,1757087453074,-365.74101,0.00030099,7]
[383687493,1757087453084,-176.896216,0.00030099,7]
[383687494,1757087453096,-1207.576497,0.00030099,7]
[383687495,1757087453107,-365.74101,0.00030099,7]
[383687496,1757087453117,-176.896216,0.00030099,7]
[383687497,1757087453127,-1207.576497,0.00030099,7]
[383687498,1757087453136,-365.74101,0.00030099,7]
[383687499,1757087453146,-3892.955099,0.00030099,7]
[383687500,1757087453155,-176.896216,0.00030099,7]
[383687501,1757087453164,-1207.576497,0.00030099,7]
[383687502,1757087453178,-153.342643,0.00030099,7]
[383687503,1757087453188,-168.026509,0.00030099,7]
[383687504,1757087453197,-365.74101,0.00030099,7]
[383687505,1757087453207,-176.896216,0.00030099,7]
[383687506,1757087453217,-1207.576497,0.00030099,7]
[383687507,1757087453227,-168.026509,0.00030099,7]
[383687508,1757087453237,-168.026509,0.00030099,7]
[383687509,1757087453248,-168.026509,0.00030099,7]
[383687510,1757087453259,-320.097283,0.00030099,7]
[383687511,1757087453269,-320.097283,0.00030099,7]
[383687512,1757087453278,-320.097283,0.00030099,7]
[383687513,1757087453288,-320.097283,0.00030099,7]
[383687514,1757087453296,-222.144865,0.00030099,7]
[383687515,1757087453304,-222.144865,0.00030099,7]
[383687516,1757087453314,-222.144865,0.00030099,7]
[383687517,1757087453324,-222.144865,0.00030099,7]
[383687518,1757087453334,-150.0,0.00030099,20]
[383687519,1757087453344,-236.10899304,0.00030099,2]
[383687520,1757087453354,-15275.966868,0.000301,3]
[383687521,1757087453365,-10489.4317958,0.000301,3]
[383687522,1757087453374,-15275.966868,0.000301,3]
[383687523,1757087453383,-39635.92845408,0.000301,3]
[383687524,1757087454044,-335.07409423,0.000301,3]
[383687525,1757087454056,-1588.55793137,0.000301,3]
[383687526,1757087454067,-895.2,0.000301,3]
[383687527,1757087454083,-2873.76731,0.000301,3]
[383687528,1757087454094,-4474.698,0.000301,3]
[383687532,1757087558274,172.94,0.00014444,2]
[383687533,1757087558495,172.94,0.00019259,2]
[383687566,1757087996284,5000.0,0.00021,2]
[383687570,1757088071949,153.26,0.00013699,2]
[383687575,1757088178337,200.0,0.00030037,120]
[383687584,1757088331536,214.64,0.00027457,120]
[383687598,1757088539615,302.0,0.00019073,2]
[383687608,1757088631588,-1200.0,0.00020986,2]
[383687609,1757088631815,-484.51763231,0.00020986,2]
[383687610,1757088631824,-189.16234261,0.00020986,2]
[383687611,1757088631833,-1463.85708518,0.00020987,2]
[383687612,1757088631844,-5425.0,0.00020987,2]
[383687613,1757088631912,-4330.8425024,0.00020987,2]
[383687614,1757088631923,-385.52495902,0.00020987,2]
[383687616,1757088631934,-286.91,0.00020987,2]
[383687619,1757088631945,-1632.23904625,0.00020987,2]
[383687621,1757088631956,-15693.45767408,0.00020987,2]
[383687625,1757088631982,-1996.78841357,0.00020987,2]
[383687627,1757088631993,-300.4419131,0.00020987,2]
[383687628,1757088632012,-87630.8703644,0.00020987,2]
[383687629,1757088632022,-200.0,0.00020987,2]
[383687630,1757088632031,-500.0,0.00020987,2]
[383687631,1757088632040,-151.0,0.00020987,2]
[383687632,1757088632049,-500.0,0.00020987,2]
[383687633,1757088632059,-151.0,0.00020987,2]
[383687634,1757088632068,-500.0,0.00020987,2]
[383687635,1757088632077,-151.0,0.00020987,2]
[383687636,1757088632087,-500.0,0.00020987,2]
[383687637,1757088632096,-151.0,0.00020987,2]
[383687638,1757088632105,-500.0,0.00020987,2]
[383687639,1757088632114,-151.0,0.00020987,2]
[383687640,1757088632123,-500.0,0.00020987,2]
[383687641,1757088632134,-500.0,0.00020987,2]
[383687642,1757088632143,-151.0,0.00020987,2]
[383687643,1757088632152,-500.0,0.00020987,2]
[383687644,1757088632161,-151.0,0.00020987,2]
[383687645,1757088632170,-500.0,0.00020987,2]
[383687647,1757088632180,-151.0,0.00020987,2]
[383687649,1757088632189,-500.0,0.00020987,2]
[383687651,1757088632198,-151.0,0.00020987,2]
[383687653,1757088632207,-500.0,0.00020987,2]
[383687655,1757088632217,-500.0,0.00020987,2]
[383687657,1757088632226,-151.0,0.00020987,2]
[383687659,1757088632236,-151.0,0.00020987,2]
[383687661,1757088632245,-222.57763885,0.00020987,2]
[383687663,1757088632254,-151.0,0.00020987,2]
[383687665,1757088632263,-600.0,0.00020987,2]
[383687666,1757088632272,-600.0,0.00020987,2]
[383687667,1757088632281,-600.0,0.00020987,2]
[383687668,1757088632291,-600.0,0.00020987,2]
[383687669,1757088632300,-639.88003523,0.00020987,2]
[383687670,1757088632309,-250.0,0.00020993,2]
[383687671,1757088632318,-54260.47,0.00021,2]
[383687672,1757088632328,-171.39445729,0.00021,2]
[383687673,1757088632337,-250.0,0.00021006,2]
[383687674,1757088632347,-500.0,0.00021042,2]
[383687675,1757088632356,-500.0,0.00021097,2]
[383687676,1757088632365,-500.0,0.00021152,2]
[383687677,1757088632375,-500.0,0.00021207,2]
[383687678,1757088632385,-500.0,0.00021262,2]
[383687679,1757088632394,-500.0,0.00021317,2]
[383687680,1757088632403,-500.0,0.00021372,2]
[383687681,1757088632413,-500.0,0.00021427,2]
[383687682,1757088632422,-500.0,0.00021482,2]
[383687683,1757088632432,-292.70465615,0.00021535,2]
[383687684,1757088632442,-542.05810232,0.00021537,2]
[383687685,1757088632453,-168.67180485,0.000219,2]
[383687686,1757088632463,-250.0,0.00023086,2]
[383687687,1757088632472,-172.94,0.00024074,2]
[383687688,1757088632484,-310.38758092,0.00024074,2]
[383687689,1757088632493,-184.19,0.00024806,2]
[383687690,1757088632503,-2636.54429573,0.000249,2]
[383687691,1757088632512,-304.62,0.000255,2]
[383687692,1757088632522,-1484.36443372,0.0002587,2]
[383687693,1757088632534,-171.68,0.00025919,2]
[383687694,1757088632544,-2636.54429553,0.00025929,4]
[383687695,1757088632553,-2706.94,0.00026131,2]
[383687696,1757088632563,-250.0,0.00026132,2]
[383687697,1757088632573,-190.53,0.00026172,2]
[383687698,1757088632583,-252.47,0.00026238,2]
[383687699,1757088632593,-225.36,0.00026571,2]
[383687700,1757088632603,-453.2349678,0.00026959,6]
[383687701,1757088632615,-1308.87089981,0.00026959,6]
[383687702,1757088637533,-874.43842792,0.00026959,6]
[383687703,1757088637543,-150.0,0.00027099,4]
[383687704,1757088637553,-150.0,0.00027099,4]
[383687705,1757088637563,-150.0,0.00027099,4]
[383687706,1757088637573,-150.0,0.00027099,4]
[383687707,1757088637582,-150.0,0.00027099,4]
[383687708,1757088637592,-150.0,0.00027099,4]
[383687709,1757088637603,-150.0,0.00027099,4]
[383687710,1757088637613,-150.0,0.00027099,4]
[383687711,1757088637623,-150.0,0.00027099,4]
[383687712,1757088637633,-150.0,0.00027099,4]
[383687713,1757088637642,-150.0,0.00027099,4]
[383687714,1757088637652,-150.0,0.00027099,4]
[383687715,1757088637661,-150.0,0.00027099,4]
[383687716,1757088637671,-516.0,0.00027137,2]
[383687717,1757088637680,-153.26,0.00027397,2]
[383687718,1757088637691,-650.14,0.00027461,2]
[383687719,1757088637701,-463.87,0.00027546,2]
[383687720,1757088637710,-160.0,0.00027567,7]
[383687721,1757088637720,-1081.25,0.00027567,2]
[383687722,1757088637730,-46.85941148,0.00027579,2]
[383687723,1757088637743,-4992.85058852,0.00027579,2]
[383687724,1757088637752,-179.2,0.00027584,2]
[383687725,1757088637762,-241.77,0.00027653,2]
[383687726,1757088637772,-244.22,0.00027674,2]
[383687727,1757088637781,-3573.86,0.00027785,2]
[383687728,1757088637790,-500.0,0.0002785,5]
[383687729,1757088637800,-500.0,0.0002785,5]
[383687730,1757088637809,-500.0,0.0002785,5]
[383687731,1757088637821,-1000.0,0.00027911,2]
[383687732,1757088637834,-2636.54429553,0.00027988,8]
[383687733,1757088637844,-902.52144673,0.0002805,2]
[383687734,1757088637854,-670.58624095,0.00028067,2]
[383687735,1757088637863,-160.0,0.00028067,2]
[383687736,1757088637872,-151.0,0.00028067,2]
[383687737,1757088637881,-194.72792766,0.00028067,2]
[383687738,1757088637892,-1765.59772274,0.00028067,2]
[383687739,1757088637901,-151.0,0.00028067,2]
[383687740,1757088637911,-151.0,0.00028067,2]
[383687741,1757088637920,-151.0,0.00028067,2]
[383687742,1757088637930,-151.0,0.00028067,2]
[383687745,1757088637939,-151.0,0.00028067,2]
[383687747,1757088637948,-151.0,0.00028067,2]
[383687749,1757088637957,-151.0,0.00028067,2]
[383687751,1757088637966,-151.0,0.00028067,2]
[383687753,1757088637975,-151.0,0.00028067,2]
[383687755,1757088637984,-250.0,0.00028067,2]
[383687757,1757088637993,-151.0,0.00028067,2]
[383687759,1757088638003,-250.0,0.00028067,2]
[383687772,1757088638168,-151.0,0.00028067,2]
[383687773,1757088638203,-99.90049907,0.00028067,2]
[383687774,1757088638215,-150.09950093,0.00028067,2]
[383687775,1757088638226,-151.0,0.00028067,2]
[383687776,1757088638236,-250.0,0.00028067,2]
[383687777,1757088638245,-151.0,0.00028067,2]
[383687778,1757088638255,-174.30049907,0.00028067,2]
[383687779,1757088638275,-75.69950093,0.00028067,2]
[383687780,1757088638285,-257.91778498,0.00028067,2]
[383687781,1757088638295,-151.0,0.00028067,2]
[383687782,1757088638312,-250.0,0.00028067,2]
[383687783,1757088638321,-250.0,0.00028067,2]
[383687784,1757088638331,-151.0,0.00028067,2]
[383687785,1757088638341,-250.0,0.00028067,2]
[383687786,1757088638350,-151.0,0.00028067,2]
[383687787,1757088638359,-151.0,0.00028067,2]
[383687788,1757088638369,-250.0,0.00028067,2]
[383687789,1757088638379,-151.0,0.00028067,2]
[383687790,1757088638388,-250.0,0.00028067,2]
[383687791,1757088638399,-250.0,0.00028067,2]
[383687792,1757088638409,-250.0,0.00028067,2]
[383687793,1757088638418,-250.0,0.00028067,2]
[383687794,1757088638428,-250.0,0.00028067,2]
[383687795,1757088638438,-381.41178646,0.00028067,2]
[383687796,1757088638447,-250.0,0.00028067,2]
[383687797,1757088638456,-322.6107,0.00028067,2]
[383687798,1757088638465,-250.0,0.00028067,2]
[383687799,1757088638475,-250.0,0.00028067,2]
[383687800,1757088638485,-250.0,0.00028067,2]
[383687801,1757088638494,-250.0,0.00028067,2]
[383687802,1757088638503,-250.0,0.00028067,2]
[383687803,1757088638512,-250.0,0.00028067,2]
[383687804,1757088638522,-250.0,0.00028067,2]
[383687805,1757088638535,-250.0,0.00028067,2]
[383687806,1757088638544,-250.0,0.00028067,2]
[383687807,1757088638553,-250.0,0.00028067,2]
[383687808,1757088638562,-250.0,0.00028067,2]
[383687809,1757088638573,-215.19313107,0.00028067,2]
[383687810,1757088638583,-250.0,0.00028067,2]
[383687811,1757088638592,-250.0,0.00028067,2]
[383687812,1757088638603,-250.0,0.00028067,2]
[383687813,1757088638612,-250.0,0.00028067,2]
[383687814,1757088638622,-250.0,0.00028067,2]
[383687815,1757088638632,-250.0,0.00028067,2]
[383687816,1757088638643,-250.0,0.00028067,2]
[383687817,1757088638652,-172.06705153,0.00028067,2]
[383687818,1757088638662,-169.46,0.0002817,2]
[383687819,1757088638671,-554.98,0.00028197,30]
[383687820,1757088638682,-2283.79556333,0.00028218,7]
[383687821,1757088638691,-314.17,0.00028293,2]
[383687822,1757088638700,-1000.0,0.00028398,5]
[383687823,1757088638710,-500.0,0.00028398,5]
[383687824,1757088638719,-150.0,0.00028604,7]
[383687825,1757088638729,-151.0,0.00028615,2]
[383687826,1757088638739,-151.0,0.00028615,2]
[383687827,1757088638749,-151.0,0.00028615,2]
[383687828,1757088638759,-1068.11,0.00028629,2]
[383687829,1757088638768,-941.43504151,0.00028689,2]
[383687830,1757088638778,-171.68,0.00028771,2]
[383687831,1757088638788,-160.0,0.00028781,2]
[383687832,1757088638798,-1625.0,0.000288,2]
[383687833,1757088638808,-172.94,0.00028889,2]
[383687834,1757088638818,-1500.0,0.00028946,5]